bitfinex/quotes_BTCUSD_20250110
["timestamp","ask_amount","ask_price","bid_price","bid_amount"]
[1736482744955,0.00048943,93824.0,93823.0,0.67190241]
[1736482745176,0.00048943,93824.0,93823.0,0.7698512]
[1736482745847,0.00048943,93824.0,93823.0,0.7708512]
[1736482746268,0.00048943,93824.0,93823.0,0.7738512]
[1736482746484,0.00048943,93824.0,93823.0,0.67483667]
[1736482747519,0.00048943,93824.0,93823.0,0.77483667]
[1736482747728,0.00048943,93824.0,93823.0,0.87913643]
[1736482747921,0.0001706,93827.0,93826.0,0.1]
[1736482748129,0.0001706,93827.0,93826.0,0.43746498]
[1736482748369,0.0001706,93827.0,93826.0,0.44243126]
[1736482749905,0.0011706,93827.0,93826.0,0.44943126]
[1736482750272,0.0011706,93827.0,93826.0,0.45043126]
[1736482750484,0.0011706,93827.0,93826.0,1.14096787]
[1736482750719,0.0011706,93827.0,93826.0,0.93666811]
[1736482751038,0.0011706,93827.0,93826.0,1.03566811]
[1736482751366,0.0011706,93827.0,93826.0,1.03866811]
[1736482751749,0.0011706,93827.0,93826.0,0.93866811]
[1736482752832,0.0011706,93827.0,93826.0,0.46626811]
[1736482753298,0.01269072,93827.0,93826.0,0.46626811]
[1736482753498,0.0011706,93827.0,93826.0,0.46626811]
[1736482755167,0.0011706,93827.0,93826.0,0.56626811]
[1736482755575,0.0011706,93827.0,93826.0,0.46626811]
[1736482755782,0.0011706,93827.0,93826.0,0.56626811]
[1736482757166,0.0011706,93827.0,93826.0,0.46626811]
[1736482757373,0.0011706,93827.0,93826.0,0.56626811]
[1736482760243,0.00010274,93827.0,93826.0,0.56626811]
[1736482761414,0.00010274,93827.0,93826.0,0.46626811]
[1736482762662,0.00010274,93827.0,93826.0,0.41986811]
[1736482762929,0.00019659,93827.0,93826.0,0.41986811]
[1736482763449,0.01181365,93827.0,93826.0,0.41986811]
[1736482763709,0.00019659,93827.0,93826.0,0.41986811]
[1736482766056,0.00019659,93827.0,93826.0,0.45635653]
[1736482766607,0.00019659,93827.0,93826.0,0.41986811]
[1736482768303,0.00019659,93827.0,93826.0,0.46566811]
[1736482769690,0.00019659,93827.0,93826.0,0.76996787]
[1736482769980,0.00019659,93827.0,93826.0,0.79296787]
[1736482770957,0.00019659,93827.0,93826.0,0.78996787]
[1736482771228,0.00019659,93827.0,93826.0,0.89426763]
[1736482771464,0.00019659,93827.0,93826.0,0.89926763]
[1736482772093,9.385e-05,93827.0,93826.0,0.89226763]
[1736482772652,9.385e-05,93827.0,93826.0,0.88726763]
[1736482772903,0.15,93857.0,93843.0,0.0765]
[1736482773153,0.15009385,93857.0,93844.0,0.42730339]
[1736482773400,0.15009385,93857.0,93844.0,0.213119]
[1736482773646,0.15009385,93857.0,93845.0,0.0059498]
[1736482773941,9.385e-05,93857.0,93847.0,0.213112]
[1736482774155,9.385e-05,93857.0,93848.0,0.00106536]
[1736482774612,9.385e-05,93857.0,93848.0,0.0070136]
[1736482775445,0.00109385,93857.0,93848.0,0.0070136]
[1736482775841,0.00109385,93857.0,93848.0,0.00594824]
[1736482776062,0.01229229,93857.0,93848.0,0.00594824]
[1736482776272,0.01229229,93857.0,93843.0,0.0765]
[1736482776273,0.01129229,93857.0,93843.0,0.0765]
[1736482776743,0.15,93851.0,93844.0,0.00595032]
[1736482776972,0.15,93851.0,93840.0,0.32243637]
[1736482777187,0.15,93851.0,93845.0,0.0059498]
[1736482777404,0.15,93851.0,93840.0,0.32243637]
[1736482777613,0.15,93851.0,93846.0,0.00594928]
[1736482777781,0.15,93851.0,93840.0,0.38417371]
[1736482777965,0.01229229,93857.0,93847.0,0.00594876]
[1736482778148,0.213092,93856.0,93841.0,0.21419144]
[1736482778357,0.213092,93856.0,93842.0,0.08932942]
[1736482778558,0.213092,93856.0,93842.0,0.00701681]
[1736482778785,0.213092,93856.0,93842.0,0.00595136]
[1736482779080,0.15,93852.0,93842.0,0.00595136]
[1736482779607,0.15,93852.0,93840.0,0.32343637]
[1736482779805,0.15,93852.0,93843.0,0.00595084]
[1736482780067,0.15,93852.0,93841.0,0.213126]
[1736482780291,0.15,93852.0,93840.0,0.32243637]
[1736482780499,0.15,93852.0,93842.0,0.00595136]
[1736482780708,0.15,93852.0,93841.0,0.00595188]
[1736482780920,0.42186709,93852.0,93843.0,0.00595084]
[1736482781027,0.42186709,93852.0,93842.0,0.00595136]
[1736482781226,0.42186709,93852.0,93840.0,0.32343637]
[1736482781441,0.42186709,93852.0,93843.0,0.00595084]
[1736482781662,0.42186709,93852.0,93842.0,0.001]
[1736482781898,0.15,93847.0,93843.0,0.00595084]
[1736482783322,0.01129229,93857.0,93844.0,0.0487]
[1736482783530,0.01129229,93857.0,93846.0,0.0787]
[1736482783746,0.01129229,93857.0,93848.0,0.21311]
[1736482783957,0.01129229,93857.0,93849.0,0.00106538]
[1736482784153,0.01129229,93857.0,93850.0,0.213106]
[1736482784369,0.01129229,93857.0,93852.0,0.213101]
[1736482784787,0.01129229,93857.0,93851.0,0.08464668]
[1736482784788,0.01129229,93857.0,93854.0,0.213096]
[1736482784995,0.01129229,93857.0,93855.0,0.00106534]
[1736482785204,0.01129229,93857.0,93855.0,0.00700994]
[1736482785487,0.00109385,93857.0,93856.0,0.213092]
[1736482785761,9.385e-05,93857.0,93856.0,0.26428179]
[1736482785964,9.385e-05,93857.0,93856.0,0.71661816]
[1736482786155,0.00109385,93857.0,93856.0,0.7225313]
[1736482786305,9.385e-05,93857.0,93856.0,0.7225313]
[1736482786892,0.00109385,93857.0,93856.0,0.7225313]
[1736482787746,0.00109385,93857.0,93856.0,0.82683106]
[1736482787966,0.00109385,93857.0,93856.0,0.77564127]
[1736482788147,9.385e-05,93857.0,93856.0,0.77764127]
[1736482788599,9.385e-05,93857.0,93856.0,0.78164127]
[1736482794272,0.00014025,93865.0,93856.0,0.78164127]
[1736482794481,0.00014025,93865.0,93864.0,0.53551037]
[1736482794691,0.00014025,93865.0,93864.0,0.61047642]
[1736482794843,0.00014025,93865.0,93864.0,0.69817569]
[1736482795070,0.00014025,93865.0,93864.0,0.74637569]
[1736482798967,0.00014025,93865.0,93864.0,0.67140964]
[1736482802988,0.00014025,93865.0,93864.0,0.7757094]
[1736482803199,0.00014025,93865.0,93864.0,0.8757094]
[1736482803381,0.15,93897.0,93878.0,0.213042]
[1736482803591,0.00014671,93890.0,93880.0,0.213037]
[1736482803758,0.00014671,93890.0,93881.0,0.00106504]
[1736482803965,0.00014671,93890.0,93882.0,0.0059556]
[1736482804181,0.00014671,93890.0,93883.0,0.04796504]
[1736482804571,0.00014671,93890.0,93884.0,0.00591096]
[1736482804815,0.00914671,93890.0,93885.0,0.00106496]
[1736482805040,0.00014671,93890.0,93885.0,0.00106496]
[1736482805239,0.00014671,93890.0,93887.0,0.213022]
[1736482805444,0.00014671,93890.0,93889.0,0.292217]
[1736482805697,0.00014671,93890.0,93889.0,0.91895313]
[1736482805910,0.00014671,93890.0,93889.0,0.99505593]
[1736482806023,0.0001704,93903.0,93902.0,0.559688]
[1736482806224,0.0001704,93903.0,93902.0,1.55739213]
[1736482806480,0.0001704,93903.0,93902.0,1.5632448]
[1736482808625,0.0001704,93903.0,93902.0,1.5692448]
[1736482809057,0.0001704,93903.0,93902.0,1.5712448]
[1736482809669,0.0001704,93921.0,93920.0,0.212947]
[1736482809843,0.00065932,93921.0,93920.0,0.49063736]
[1736482810051,0.00065932,93921.0,93920.0,0.49648069]
[1736482810282,0.00065932,93921.0,93920.0,0.59648069]
[1736482810479,0.00065932,93921.0,93920.0,0.91891706]
[1736482811273,0.00365932,93921.0,93920.0,0.91891706]
[1736482811700,0.00065932,93921.0,93920.0,0.91891706]
[1736482812128,0.00065932,93921.0,93920.0,0.92391706]
[1736482812343,0.00165932,93921.0,93920.0,0.94691706]
[1736482812724,0.00065932,93921.0,93920.0,0.94691706]
[1736482813452,0.0001704,93945.0,93932.0,0.1]
[1736482813453,8.52e-05,93941.0,93932.0,0.1]
[1736482813668,0.00023184,93941.0,93938.0,0.212906]
[1736482813874,0.00023184,93941.0,93940.0,0.53533737]
[1736482814240,0.00023184,93941.0,93940.0,0.54099054]
[1736482815433,0.00123184,93941.0,93940.0,0.54099054]
[1736482815631,0.00123184,93941.0,93940.0,0.59197921]
[1736482815853,0.00023184,93941.0,93940.0,0.59197921]
[1736482816263,0.00123184,93941.0,93940.0,0.59197921]
[1736482816666,0.00023184,93941.0,93940.0,0.69627897]
[1736482817009,0.00023184,93941.0,93940.0,0.85345897]
[1736482817333,0.00023184,93941.0,93940.0,0.93055897]
[1736482818166,0.00023184,93941.0,93940.0,0.8795703]
[1736482818697,0.00023184,93941.0,93940.0,0.8815703]
[1736482819111,0.00023184,93941.0,93940.0,0.8855703]
[1736482819539,0.00023184,93941.0,93940.0,0.7780903]
[1736482819758,0.00023184,93941.0,93940.0,0.67379054]
[1736482820207,0.00023184,93941.0,93940.0,0.7780903]
[1736482820721,0.00023184,93941.0,93940.0,1.00539006]
[1736482820833,0.00023184,93941.0,93940.0,1.10539006]
[1736482821882,0.00023184,93941.0,93940.0,1.57779006]
[1736482825726,0.15,93983.0,93955.0,0.0782]
[1736482825940,0.00014659,93979.0,93967.0,0.21284]
[1736482826146,0.00014659,93979.0,93969.0,0.212836]
[1736482826371,0.00014659,93979.0,93970.0,0.00660026]
[1736482826946,0.00014659,93979.0,93971.0,0.212831]
[1736482827156,0.00014659,93979.0,93972.0,0.04429075]
[1736482827421,0.00014659,93979.0,93972.0,0.00659922]
[1736482827627,0.00014659,93979.0,93972.0,0.0055352]
[1736482827810,0.00014659,93979.0,93964.0,0.00106402]
[1736482828006,0.00114659,93979.0,93969.0,0.001]
[1736482828213,0.00050538,93979.0,93965.0,0.00553883]
[1736482828440,0.00014659,93979.0,93970.0,0.00553624]
[1736482828743,0.00514659,93979.0,93972.0,0.001]
[1736482828981,0.15414659,93979.0,93963.0,0.212849]
[1736482829158,0.03987008,93978.0,93963.0,0.212849]
[1736482829459,0.15114659,93979.0,93969.0,0.001]
[1736482829655,0.15414659,93979.0,93964.0,0.00553935]
[1736482829905,0.15414659,93979.0,93962.0,0.21285]
[1736482830112,0.425631,93978.0,93965.0,0.00553883]
[1736482830334,0.425631,93978.0,93957.0,0.53529937]
[1736482830335,0.002,93978.0,93968.0,0.1]
[1736482830550,0.002,93978.0,93962.0,0.1]
[1736482830551,0.002,93978.0,93977.0,0.212818]
[1736482830990,0.002,93978.0,93977.0,0.2183511]
[1736482831216,0.002,93978.0,93977.0,0.25018621]
[1736482831651,0.01740576,93989.0,93986.0,0.212795]
[1736482831864,0.01740576,93989.0,93987.0,0.00106384]
[1736482832011,0.15,94005.0,93987.0,0.00659176]
[1736482832906,0.001,93989.0,93987.0,0.00659176]
[1736482833536,0.01773878,93997.0,93987.0,0.00659176]
[1736482833715,0.01973878,93997.0,93987.0,0.00659176]
[1736482835001,0.15,93995.0,93987.0,0.00552792]
[1736482835191,0.01973878,93997.0,93987.0,0.00552792]
[1736482835192,0.151,93989.0,93987.0,0.00552792]
[1736482835395,0.152,93989.0,93974.0,0.212824]
[1736482835723,0.152,93989.0,93975.0,0.00651975]
[1736482835894,0.151,93989.0,93975.0,0.00651975]
[1736482836055,0.15,93993.0,93975.0,0.00651975]
[1736482836280,0.03805178,93992.0,93975.0,0.00545581]
[1736482836480,0.15,93988.0,93975.0,0.00545581]
[1736482836721,0.212792,93989.0,93968.0,0.212837]
[1736482836912,0.15,93986.0,93968.0,0.212837]
[1736482837111,0.15,93986.0,93971.0,0.00546406]
[1736482837331,0.21319388,93986.0,93971.0,0.00546406]
[1736482837735,0.15,93984.0,93971.0,0.00546406]
[1736482837944,0.15,93982.0,93971.0,0.00546406]
[1736482839290,0.151,93988.0,93971.0,0.00546406]
[1736482839499,0.15,93984.0,93971.0,0.00546406]
[1736482839712,0.512008,93987.0,93971.0,0.00546406]
[1736482839713,0.15,93973.0,93971.0,0.00546406]
[1736482839918,0.212829,93972.0,93971.0,0.00546406]
[1736482840124,0.15,93973.0,93969.0,0.32243637]
[1736482840333,0.212829,93972.0,93971.0,0.00546406]
[1736482840573,0.212833,93970.0,93969.0,0.32258296]
[1736482840775,0.362833,93970.0,93969.0,0.00014659]
[1736482842854,0.362833,93970.0,93969.0,0.00114659]
[1736482843063,0.362833,93970.0,93969.0,0.00014659]
[1736482843271,0.42615564,93970.0,93969.0,0.00014659]
[1736482843497,0.42915564,93970.0,93969.0,0.00014659]
[1736482843700,0.42615564,93970.0,93969.0,0.00014659]
[1736482843900,0.364833,93970.0,93969.0,0.00014659]
[1736482844107,0.367833,93970.0,93969.0,0.00014659]
[1736482845315,0.364833,93970.0,93969.0,0.00014659]
[1736482845953,0.362833,93970.0,93969.0,0.00014659]
[1736482846159,0.364833,93970.0,93969.0,0.00014659]
[1736482846356,0.366833,93970.0,93969.0,0.00014659]
[1736482846760,0.364833,93970.0,93969.0,0.00014659]
[1736482846973,0.366833,93970.0,93969.0,0.00014659]
[1736482851606,0.705319,93970.0,93969.0,0.00014659]
[1736482852053,0.682907,93970.0,93969.0,0.00014659]
[1736482854651,0.15,93951.0,93948.0,0.0825]
[1736482855653,0.212858,93959.0,93949.0,0.00556602]
[1736482855849,0.212858,93959.0,93948.0,0.0835]
[1736482856272,0.212858,93959.0,93948.0,0.0865]
[1736482856610,0.425717,93959.0,93948.0,0.0855]
[1736482856785,0.425717,93959.0,93948.0,0.0825]
[1736482856992,0.212858,93959.0,93948.0,0.0825]
[1736482857586,0.425718,93959.0,93949.0,0.0055826]
[1736482857785,0.212858,93959.0,93948.0,0.0825]
[1736482858230,0.425718,93959.0,93948.0,0.0825]
[1736482858672,0.44499997,93959.0,93948.0,0.0825]
[1736482858880,0.15,93954.0,93948.0,0.0825]
[1736482859318,0.15,93954.0,93948.0,0.0625]
[1736482860458,0.15,93952.0,93948.0,0.0625]
[1736482860875,0.15,93952.0,93948.0,0.06875]
[1736482861080,0.15,93952.0,93949.0,0.0476]
[1736482861286,0.15,93952.0,93949.0,0.0531826]
[1736482861494,0.01728197,93959.0,93949.0,0.0531826]
[1736482861952,0.15,93962.0,93949.0,0.0531826]
[1736482862171,0.15,93962.0,93950.0,0.0276706]
[1736482862376,0.15,93962.0,93951.0,0.0798]
[1736482862581,0.15,93971.0,93956.0,0.212865]
[1736482862999,0.15,93971.0,93957.0,0.00557846]
[1736482863215,0.002,93962.0,93957.0,0.00557846]
[1736482863395,0.15,93960.0,93957.0,0.00557846]
[1736482863631,0.15,93960.0,93953.0,0.0798]
[1736482863742,0.362858,93959.0,93958.0,0.00557794]
[1736482864152,0.15,93958.0,93953.0,0.0798]
[1736482864561,0.15,93958.0,93954.0,0.00558001]
[1736482865182,0.212858,93959.0,93954.0,0.00558001]
[1736482865804,0.001,93958.0,93954.0,0.00558001]
[1736482866004,0.212858,93959.0,93954.0,0.00558001]
[1736482866430,0.214858,93959.0,93954.0,0.00558001]
[1736482867045,0.23373148,93959.0,93954.0,0.00558001]
[1736482867214,0.15,93956.0,93954.0,0.00558001]
[1736482867415,0.15,93954.0,93949.0,0.0476]
[1736482867642,0.15,93954.0,93947.0,0.0798]
[1736482868058,0.15,93950.0,93939.0,0.0497]
[1736482868276,0.362901,93940.0,93939.0,0.0497]
[1736482868489,0.15,93939.0,93938.0,0.0798]
[1736482869920,0.15,93939.0,93938.0,0.0808]
[1736482870261,0.15,93939.0,93938.0,0.0818]
[1736482870467,0.212901,93940.0,93938.0,0.002]
[1736482870678,0.06962665,93939.0,93938.0,0.002]
[1736482871103,0.212901,93940.0,93938.0,0.002]
[1736482871675,0.23023371,93940.0,93938.0,0.001]
[1736482872018,0.23023371,93940.0,93938.0,0.002]
[1736482872217,0.23023371,93940.0,93938.0,0.001]
[1736482872669,0.15,93934.0,93926.0,0.0809]
[1736482872837,0.15,93934.0,93931.0,0.00031684]
[1736482874196,0.15,93932.0,93931.0,0.00031684]
[1736482875129,0.15,93937.0,93931.0,0.00031684]
[1736482875309,0.15,93935.0,93931.0,0.00031684]
[1736482875631,0.002,93934.0,93931.0,0.00031684]
[1736482875830,0.15,93935.0,93931.0,0.00031684]
[1736482876028,0.001,93932.0,93931.0,0.00031684]
[1736482876499,0.15,93935.0,93931.0,0.00031684]
[1736482876675,0.153,93935.0,93931.0,0.00031684]
[1736482877171,0.151,93935.0,93931.0,0.00031684]
[1736482877374,0.001,93932.0,93931.0,0.00031684]
[1736482878652,0.151,93935.0,93931.0,0.00031684]
[1736482878850,0.362919,93932.0,93931.0,0.00031684]
[1736482879033,0.15,93932.0,93931.0,0.00031684]
[1736482879493,0.18814656,93932.0,93931.0,0.00031684]
[1736482879714,0.18814656,93932.0,93914.0,0.0769]
[1736482879715,0.362958,93915.0,93914.0,0.0769]
[1736482879905,0.15,93914.0,93911.0,0.0499704]
[1736482880152,0.15,93912.0,93911.0,0.0001704]
[1736482881185,0.15,93912.0,93911.0,0.0031704]
[1736482882759,0.15,93912.0,93911.0,0.0001704]
[1736482882989,0.17165393,93912.0,93911.0,0.0031704]
[1736482885272,0.17165393,93912.0,93911.0,0.0011704]
[1736482885747,0.17265393,93912.0,93911.0,0.0001704]
[1736482885939,0.25380632,93912.0,93911.0,0.0001704]
[1736482886078,0.17265393,93912.0,93911.0,0.0001704]
[1736482905916,0.29526293,93912.0,93911.0,0.0001704]
[1736482906775,0.29526293,93912.0,93896.0,0.0756]
[1736482906986,0.362999,93897.0,93896.0,0.0756]
[1736482907203,0.3992989,93897.0,93896.0,0.0756]
[1736482908228,0.3992989,93897.0,93896.0,0.07608892]
[1736482909195,0.3992989,93897.0,93896.0,0.07708892]
[1736482909398,0.3992989,93897.0,93896.0,0.07608892]
[1736482910066,0.3992989,93897.0,93896.0,0.00048892]
[1736482911156,0.4192979,93897.0,93896.0,0.00048892]
[1736482913343,0.382998,93897.0,93896.0,0.00048892]
[1736482919455,0.637089,93897.0,93896.0,0.00048892]
[1736482919888,0.641089,93897.0,93896.0,0.00048892]
[1736482920092,0.638089,93897.0,93896.0,0.00048892]
[1736482920487,0.641089,93897.0,93896.0,0.00048892]
[1736482920823,0.74538876,93897.0,93896.0,0.00048892]
[1736482921273,0.363002,93896.0,93893.0,0.0001706]
[1736482921485,0.363028,93884.0,93883.0,0.0001702]
[1736482921699,0.906972,93884.0,93883.0,0.0001702]
[1736482921906,0.363028,93884.0,93883.0,0.0001702]
[1736482922121,0.38470388,93884.0,93883.0,0.0001702]
[1736482923073,0.78314088,93884.0,93883.0,0.0001702]
[1736482923286,0.78514088,93884.0,93883.0,0.0001702]
[1736482923603,0.78914088,93884.0,93883.0,0.0001702]
[1736482923803,0.767465,93884.0,93883.0,0.0001702]
[1736482924608,0.746374,93884.0,93883.0,0.0001702]
[1736482924842,0.76616744,93884.0,93883.0,0.0001702]
[1736482925294,0.50872344,93884.0,93883.0,0.0001702]
[1736482925464,0.38882144,93884.0,93883.0,0.0789702]
[1736482925703,0.17579344,93884.0,93883.0,0.1240702]
[1736482926142,0.02579344,93884.0,93883.0,0.12894642]
[1736482926320,0.02179344,93884.0,93883.0,0.12894642]
[1736482926728,0.02379344,93884.0,93883.0,0.12894642]
[1736482926936,0.01979344,93884.0,93883.0,0.12894642]
[1736482927280,0.15,93887.0,93884.0,0.0788]
[1736482927500,0.2226036,93887.0,93884.0,0.0788]
[1736482927912,0.2226036,93887.0,93885.0,0.00487497]
[1736482928136,0.15,93887.0,93885.0,0.00487497]
[1736482928347,0.363024,93886.0,93885.0,0.00487497]
[1736482928562,0.15,93885.0,93884.0,0.0788]
[1736482929515,0.363028,93884.0,93883.0,0.0001702]
[1736482929716,0.44387626,93884.0,93883.0,0.0001702]
[1736482931279,0.363028,93884.0,93883.0,0.0001702]
[1736482932232,0.368028,93884.0,93883.0,0.0001702]
[1736482935603,0.363028,93884.0,93883.0,0.0001702]
[1736482935826,0.368028,93884.0,93883.0,0.0001702]
[1736482936225,0.364028,93884.0,93883.0,0.0001702]
[1736482936425,0.367028,93884.0,93883.0,0.0001702]
[1736482936866,0.368028,93884.0,93883.0,0.0001702]
[1736482938368,0.367028,93884.0,93883.0,0.0001702]
[1736482938581,0.364028,93884.0,93883.0,0.0001702]
[1736482938985,0.44897626,93884.0,93883.0,0.0001702]
[1736482939409,0.44797626,93884.0,93883.0,0.0001702]
[1736482939618,0.44897626,93884.0,93883.0,0.0001702]
[1736482940266,0.77491526,93884.0,93883.0,0.0001702]
[1736482940603,0.77891526,93884.0,93883.0,0.0001702]
[1736482941757,0.77991526,93884.0,93883.0,0.0001702]
[1736482943841,0.78739526,93884.0,93883.0,0.0001702]
[1736482945831,0.81039526,93884.0,93883.0,0.0001702]
[1736482946556,0.363046,93876.0,93875.0,0.0001702]
[1736482946798,0.363046,93876.0,93875.0,0.00031691]
[1736482946799,1.0015182,93876.0,93875.0,0.00031691]
[1736482946975,0.8036792,93876.0,93875.0,0.00031691]
[1736482948335,0.7555192,93876.0,93875.0,0.00031691]
[1736482949254,0.7645192,93876.0,93875.0,0.00131691]
[1736482949463,0.7455882,93876.0,93875.0,0.00131691]
[1736482950107,0.7485882,93876.0,93875.0,0.00131691]
[1736482950325,0.0909112,93876.0,93875.0,0.00131691]
[1736482950713,0.8439512,93876.0,93875.0,0.00131691]
[1736482950961,0.8508062,93876.0,93875.0,0.00131691]
[1736482951362,0.7708062,93876.0,93875.0,0.00131691]
[1736482951567,0.213076,93863.0,93862.0,0.0775]
[1736482951968,0.213076,93863.0,93862.0,0.0824585]
[1736482952385,0.363076,93863.0,93862.0,0.0824585]
[1736482952677,0.363076,93863.0,93862.0,0.0775]
[1736482952919,0.367076,93863.0,93862.0,0.0775]
[1736482954685,0.363081,93861.0,93860.0,0.0001702]
[1736482955632,0.363081,93861.0,93860.0,0.0776702]
[1736482956130,0.364081,93861.0,93860.0,0.0776702]
[1736482956298,0.366081,93861.0,93860.0,0.0776702]
[1736482956505,0.38253836,93861.0,93860.0,0.0776702]
[1736482957253,0.16945736,93861.0,93860.0,0.0776702]
[1736482957562,0.213064,93869.0,93860.0,0.0776702]
[1736482957776,0.22922952,93869.0,93861.0,0.00496092]
[1736482958733,0.213076,93863.0,93861.0,0.00496092]
[1736482959134,0.213076,93863.0,93860.0,0.0776702]
[1736482959492,0.213076,93863.0,93862.0,0.1246]
[1736482959723,0.15,93867.0,93863.0,0.0775]
[1736482959951,0.213069,93866.0,93864.0,0.00495936]
[1736482960317,0.01816552,93869.0,93865.0,0.0775]
[1736482960529,0.01816552,93869.0,93860.0,0.0001702]
[1736482960530,0.01616552,93869.0,93868.0,0.0775]
[1736482960739,0.213048,93876.0,93868.0,0.08245729]
[1736482960941,0.426096,93876.0,93868.0,0.08245729]
[1736482961155,0.213048,93876.0,93869.0,0.0483]
[1736482961421,0.213048,93876.0,93870.0,0.08115625]
[1736482961683,0.213051,93874.0,93870.0,0.08115625]
[1736482962059,0.213051,93874.0,93870.0,0.0762]
[1736482962523,0.213051,93874.0,93871.0,0.00493597]
[1736482962734,0.01779281,93876.0,93872.0,0.0762]
[1736482962941,0.01779281,93876.0,93871.0,0.00493597]
[1736482962942,0.003,93874.0,93873.0,0.0483]
[1736482963143,0.003,93874.0,93873.0,0.12943493]
[1736482964200,0.01679281,93876.0,93873.0,0.00493493]
[1736482964405,0.01679281,93876.0,93874.0,0.048]
[1736482964572,0.213026,93885.0,93875.0,0.0798]
[1736482964785,0.213026,93885.0,93875.0,0.08473389]
[1736482965876,0.004,93876.0,93875.0,0.08473389]
[1736482966083,0.213037,93880.0,93875.0,0.08473389]
[1736482966307,0.0426045,93884.0,93875.0,0.08473389]
[1736482966635,0.213031,93883.0,93876.0,0.00490309]
[1736482966847,0.213031,93883.0,93874.0,0.048]
[1736482966848,0.04862331,93882.0,93877.0,0.0805]
[1736482967063,0.15,93880.0,93877.0,0.0805]
[1736482967717,0.15,93878.0,93877.0,0.0805]
[1736482967894,0.455041,93878.0,93875.0,0.001]
[1736482968036,0.15,93876.0,93875.0,0.001]
[1736482968236,0.643905,93876.0,93871.0,0.0788]
[1736482968477,0.426098,93875.0,93871.0,0.0788]
[1736482968637,0.213053,93873.0,93871.0,0.0788]
[1736482969098,0.15,93872.0,93871.0,0.0788]
[1736482969708,0.15,93872.0,93871.0,0.0818]
[1736482970109,0.15,93872.0,93871.0,0.0788]
[1736482970463,0.155,93872.0,93871.0,0.0788]
[1736482970588,0.15,93872.0,93871.0,0.0788]
[1736482970788,0.15,93872.0,93871.0,0.0798]
[1736482971440,0.15,93872.0,93871.0,0.0788]
[1736482971897,0.152,93872.0,93871.0,0.0788]
[1736482972402,0.15,93872.0,93871.0,0.0788]
[1736482972606,0.157,93872.0,93871.0,0.0788]
[1736482973307,0.16822641,93872.0,93871.0,0.0788]
[1736482973807,0.17122641,93872.0,93871.0,0.0788]
[1736482974315,0.17322641,93872.0,93871.0,0.0788]
[1736482974727,0.17122641,93872.0,93871.0,0.0788]
[1736482974942,0.16622641,93872.0,93871.0,0.0788]
[1736482975178,0.16822641,93872.0,93871.0,0.0788]
[1736482975393,0.17322641,93872.0,93871.0,0.0788]
[1736482976230,0.16822641,93872.0,93871.0,0.0788]
[1736482976434,0.25396325,93872.0,93871.0,0.0788]
[1736482976844,0.24896325,93872.0,93871.0,0.0788]
[1736482977065,0.24696325,93872.0,93871.0,0.0788]
[1736482977265,0.24896325,93872.0,93871.0,0.0788]
[1736482977762,0.24696325,93872.0,93871.0,0.0788]
[1736482977987,0.24896325,93872.0,93871.0,0.0788]
[1736482978181,0.24896325,93872.0,93865.0,0.0453]
[1736482978182,0.363069,93866.0,93865.0,0.1227]
[1736482978594,0.363069,93866.0,93865.0,0.12763066]
[1736482978841,0.363069,93866.0,93865.0,0.1227]
[1736482979014,0.363069,93866.0,93865.0,0.12763066]
[1736482980209,0.363069,93866.0,93858.0,0.0806706]
[1736482980210,0.363081,93861.0,93858.0,0.0806706]
[1736482981692,0.363081,93861.0,93858.0,0.0001706]
[1736482982125,0.37948992,93861.0,93858.0,0.0001706]
[1736482982967,0.38148992,93861.0,93858.0,0.0001706]
[1736482984063,0.38248992,93861.0,93858.0,0.0001706]
[1736482985798,0.38248992,93861.0,93854.0,0.0001702]
[1736482985799,0.21309,93857.0,93854.0,4.1e-07]
[1736482986012,0.15,93855.0,93844.0,0.0821]
[1736482986165,0.15,93845.0,93844.0,0.08219385]
[1736482986791,0.15,93845.0,93844.0,9.385e-05]
[1736482987164,0.6798858,93845.0,93844.0,9.385e-05]
[1736482987544,0.6798858,93845.0,93837.0,0.0001702]
[1736482987545,0.363133,93838.0,93837.0,0.0001702]
[1736482987719,0.954616,93838.0,93837.0,0.0001702]
[1736482987896,1.0068,93838.0,93837.0,0.0001702]
[1736482988101,1.03243611,93838.0,93837.0,0.0001702]
[1736482988315,1.03357259,93838.0,93837.0,0.0001702]
[1736482988709,0.363155,93828.0,93825.0,8.53e-05]
[1736482988918,0.13013201,93828.0,93825.0,8.53e-05]
[1736482989123,0.13013201,93828.0,93827.0,0.00518923]
[1736482990098,0.213155,93828.0,93827.0,0.00518923]
[1736482990502,0.215155,93828.0,93827.0,0.00518923]
[1736482990980,0.213155,93828.0,93827.0,0.00518923]
[1736482991138,0.219155,93828.0,93827.0,0.00518923]
[1736482991462,0.215155,93828.0,93827.0,0.0001702]
[1736482991668,0.221155,93828.0,93827.0,0.0001702]
[1736482991889,0.221155,93828.0,93827.0,0.00843132]
[1736482992065,0.221155,93828.0,93827.0,0.0001702]
[1736482992741,0.219155,93828.0,93827.0,0.0001702]
[1736482992890,0.213155,93828.0,93827.0,0.0001702]
[1736482993089,0.2313171,93828.0,93827.0,0.0001702]
[1736482993684,0.2293171,93828.0,93827.0,0.0001702]
[1736482994149,0.2313171,93828.0,93827.0,0.0001702]
[1736482994546,0.2293171,93828.0,93827.0,0.0001702]
[1736482994795,0.2313171,93828.0,93827.0,0.0001702]
[1736482994974,0.2293171,93828.0,93827.0,0.0001702]
[1736482995410,0.2343171,93828.0,93827.0,0.0001702]
[1736482996031,0.2363171,93828.0,93827.0,0.0001702]
[1736482996261,0.2313171,93828.0,93827.0,0.0001702]
[1736482996810,0.2293171,93828.0,93827.0,0.0001702]
[1736482997166,0.2313171,93828.0,93827.0,0.0001702]
[1736482997511,0.2353171,93828.0,93827.0,0.0001702]
[1736482997720,0.2293171,93828.0,93827.0,0.0001702]
[1736482997920,0.2313171,93828.0,93827.0,0.0001702]
[1736482998239,0.2363171,93828.0,93827.0,0.0001702]
[1736482998856,0.2313171,93828.0,93827.0,0.0001702]
[1736482999070,0.3793171,93828.0,93827.0,0.0001702]
[1736482999231,0.3843171,93828.0,93827.0,0.0001702]
[1736482999433,0.3863171,93828.0,93827.0,0.0001702]
[1736482999907,0.3843171,93828.0,93827.0,0.0001702]
[1736483000235,0.3853171,93828.0,93827.0,0.0001702]
[1736483000571,0.3793171,93828.0,93827.0,0.0001702]
[1736483000769,0.3813171,93828.0,93827.0,0.0001702]